Cogmind - Beta 10.2 @@@ ROGUE MODE // 2020.12.12 @ 00:47:25 Player: aperiodic Result: Destroyed self with Mini Grenade Launcher Performance ------------- Evolutions (1) 500 Regions Visited (6) 1200 Robots Destroyed (109) 545 Value Destroyed (2126) 2126 Prototype IDs (31) 620 Alien Tech Used (0) 0 Bonus (-859) -859 TOTAL SCORE: 4132 Bonus ------- High Alert Combat Kills 22 Aligned with FarCom 300 Friendly Fire -1181 Cogmind --------- Core Integrity 0/400 Matter 197/300 Energy 310/310 System Corruption 2% Temperature Cool (13) Movement Treading (180) Ox1 Location -8/Mines Parts ------- > --- POWER (1) -------- Reinforced Fission Core > --- PROPULSION (2) --- Light Treads Light Treads > --- UTILITY (4) ------ Large Storage Unit Large Storage Unit Large Storage Unit Light Armor Plating > --- WEAPON (2) ------- Improved Assault Rifle Mini Grenade Launcher > --- INVENTORY (22) --- Makeshift Power Source Light Treads Light Treads Improved Flight Unit Improved Flight Unit Improved Flight Unit YI-UF0's Bottomless Matter Pit (0) Gravity Neutralizing Apparatus EX Chip 1 EX Chip 1 Hacking Suite EX Chip 2 EX Chip 2 EX Chip 2 Trap Reconfigurator Improved Assault Rifle Improved Assault Rifle Improved Assault Rifle Improved Assault Rifle Improved Assault Rifle Ripper Deploy-a-Sentry Peak State ------------ > --- POWER ------------ Reinforced Fission Core > --- PROPULSION ------- Light Treads Light Treads > --- UTILITY ---------- Large Storage Unit Large Storage Unit Large Storage Unit Light Armor Plating > --- WEAPON ----------- Improved Assault Rifle Improved Assault Rifle > --- INVENTORY -------- Light Treads Light Treads Improved Flight Unit Improved Flight Unit Improved Flight Unit YI-UF0's Bottomless Matter Pit Gravity Neutralizing Apparatus EX Chip 1 EX Chip 1 Hacking Suite EX Chip 2 EX Chip 2 EX Chip 2 Trap Reconfigurator Improved Assault Rifle Improved Assault Rifle Improved Assault Rifle Improved Assault Rifle Mini Grenade Launcher Ripper Deploy-a-Sentry [Rating: 25] Favorites ----------- Power Ion Engine Engine Ion Engine Power Core Reinforced Fission Core Propulsion Light Treads Treads Light Treads Wheel Armored Wheel Utility Large Storage Unit Device Gravity Neutralizing Apparatus Storage Large Storage Unit Processor Armor Integrity Analyzer Hackware Hacking Suite Protection Light Armor Plating Weapon Improved Assault Rifle Energy Gun Small Laser Ballistic Gun Improved Assault Rifle Launcher Mini Grenade Launcher Build | -11 -10 -10 -9 -9 -9 -8 ------- Run | Scr Mat Min Mat Min Exi Min Slots Evolved 2 | . . . 2 . . . Power . | . . . . . . . Propulsion . | . . . . . . . Utility 2 | . . . 2 . . . Weapon . | . . . . . . . Parts Attached 113 | 8 18 13 44 8 21 1 Power 10 | 1 3 2 2 1 1 . Engine 7 | 1 3 1 1 1 . . Core 3 | . . 1 1 . 1 . Reactor . | . . . . . . . Propulsion 29 | 4 8 4 9 2 2 . Treads 19 | 2 4 3 6 2 2 . Leg . | . . . . . . . Wheel 10 | 2 4 1 3 . . . Hover . | . . . . . . . Flight . | . . . . . . . Utility 21 | 1 1 . 6 1 12 . Device 1 | . . . . . 1 . Storage 10 | 1 1 . 3 . 5 . Processor 1 | . . . . . 1 . Hackware 2 | . . . 2 . . . Protection 7 | . . . 1 1 5 . Artifact . | . . . . . . . Weapon 53 | 2 6 7 27 4 6 1 Energy Gun 4 | 1 . . 3 . . . Energy Cannon . | . . . . . . . Ballistic Gun 32 | 1 3 5 17 3 3 . Ballistic Cannon . | . . . . . . . Launcher 17 | . 3 2 7 1 3 1 Special Weapon . | . . . . . . . Impact Weapon . | . . . . . . . Slashing Weapon . | . . . . . . . Piercing Weapon . | . . . . . . . Special Melee Weapon . | . . . . . . . Unidentified Prototypes 2 | . . . . . 2 . Parts Lost 8 | . . . 3 2 3 . Power 2 | . . . . 1 1 . Propulsion 1 | . . . 1 . . . Utility 3 | . . . . 1 2 . Weapon 2 | . . . 2 . . . Highest Loss Streak 2 | . . . 1 2 2 . Average Slot Usage (%) 95 | . 95 99 98 93 93 100 Engine 7 | . 14 9 7 5 5 . Core 3 | . . 4 3 . 5 11 Treads 19 | . 16 18 14 22 22 22 Wheel 4 | . 11 9 7 . . . Storage 25 | . 24 28 26 33 21 33 Processor 1 | . . . . . 3 . Hackware 3 | . . . 17 . . . Protection 6 | . . . . 10 13 11 Energy Gun 3 | . 14 . 4 . . . Ballistic Gun 19 | . 13 27 16 21 21 21 Naked Turns . | . . . . . . . Heaviest Build 78 | 9 17 17 56 56 78 78 Greatest Support 40 | 40 40 40 40 40 40 40 Greatest Overweight (x) 3 | . . . 3 1 1 1 Average Overweight (x) . | . . . 1 1 . 1 Largest Inventory Capacity 22 | 6 8 8 20 20 22 22 Average Capacity 14 | 5 7 8 17 20 15 22 Most Carried 22 | 6 8 8 20 20 22 22 Average Carried 13 | 4 6 7 15 19 13 22 Final Capacity 22 | 6 8 8 20 20 22 22 Final Carried 22 | 4 8 8 20 20 22 22 Class Distribution -------------------- 39% | Hauler-Mutant 37% | Mutant 17% | Scavenger-Mutant 5% | Hacker-Mutant Dominant Class ---------------- Mutant | -10/Materials Mutant | -10/Mines Hauler-Mutant | -9/Materials Hauler-Mutant | -9/Mines Mutant | -9/Exiles Hauler-Mutant | -8/Mines Resources | -11 -10 -10 -9 -9 -9 -8 ----------- Run | Scr Mat Min Mat Min Exi Min Matter Collected 2781 | 166 311 261 845 326 872 . Remotely . | . . . . . . . Salvage Created 3269 | . 468 194 1549 620 348 90 Parts 246 | . 35 27 112 17 53 2 Haulers Intercepted 8 | . 2 . 6 . . . Recyclers Shooed 2 | . 2 . . . . . Parts Field Recycled . | . . . . . . . Retrieved Matter . | . . . . . . . Parts Self-Destructed . | . . . . . . . Prevented . | . . . . . . . Kills | -11 -10 -10 -9 -9 -9 -8 ------- Run | Scr Mat Min Mat Min Exi Min Combat Hostiles Destroyed 69 | . 11 13 38 4 1 2 Guns 35 | . 4 9 20 1 1 . AOE 33 | . 7 4 18 2 . 2 Classes Destroyed 14 | . 7 1 2 1 2 1 Worker 6 | . 1 . 2 3 . . Builder 2 | . . . 2 . . . Tunneler 2 | . . 1 . 1 . . Hauler 8 | . 2 . 6 . . . Recycler 5 | . 1 . . 4 . . Operator 2 | . 1 . 1 . . . Turret 1 | . . . . . 1 . Watcher 3 | . 1 . 2 . . . Swarmer 28 | . 3 11 14 . . . Grunt 28 | . 8 2 14 3 . 1 Brawler 1 | . . . . . . 1 Sentry 10 | . . . 10 . . . Demolisher 1 | . . . . 1 . . Zionite 8 | . . . . . 8 . Best Kill Streak 9 | . 6 4 9 3 3 2 Combat Bots Only 6 | . 5 4 6 3 1 2 Max Kills in Single Turn 4 | . 4 3 3 1 2 1 Gunslinging . | . . . . . . . Exploded 4 | . 4 2 3 1 . 1 Melee . | . . . . . . . Uniques/NPCs Destroyed 5 | . . . . 1 4 . YI-UF0 (-9/Mines) 8R-AWN (-9/Exiles) EX-DEC (-9/Exiles) EX-BIN (-9/Exiles) EX-HEX (-9/Exiles) Combat | -11 -10 -10 -9 -9 -9 -8 -------- Run | Scr Mat Min Mat Min Exi Min Damage Taken 3279 | . 273 275 1283 370 994 84 Core 493 | . 41 51 232 57 71 41 Absorbed by Shields . | . . . . . . . Core Remaining (%) 81 | 100 . 63 . . . . Volleys Fired 278 | . 45 22 96 32 81 2 Largest 2 | . 2 2 2 2 2 1 Hottest 68 | . 60 60 68 46 46 30 Shots Fired 504 | . 85 42 167 59 149 2 Gun 458 | . 80 40 145 54 139 . Cannon . | . . . . . . . Launcher 46 | . 5 2 22 5 10 2 Special . | . . . . . . . Kinetic 377 | . 40 36 108 54 139 . Thermal 44 | . 40 4 . . . . Explosive 35 | . 5 2 16 . 10 2 Electromagnetic 48 | . . . 43 5 . . Robot Hit Streak 50 | . 24 9 11 12 50 8 Robot Miss Streak 4 | . 2 2 4 2 3 . Penetration Max . | . . . . . . . Secondary Targets 4 | . . 3 1 . . . Max Gunslinging Chain 1 | . . 1 1 . . . Shots Hit Robots 355 | . 65 27 101 48 112 2 Core Hits 191 | . 33 18 80 20 35 5 Critical Hits 5 | . 1 1 1 . 2 . Critical Kills 4 | . 1 1 1 . 1 . Critical Parts Destroyed 1 | . . . . . 1 . Melee Attacks . | . . . . . . . Impact . | . . . . . . . Slashing . | . . . . . . . Piercing . | . . . . . . . Sneak Attacks . | . . . . . . . Combat Hostiles . | . . . . . . . Follow-up Attacks . | . . . . . . . Damage Inflicted 7660 | . 1031 456 3048 951 1954 220 Guns 4524 | . 612 221 1358 650 1683 . Cannons . | . . . . . . . Explosions 3125 | . 418 235 1680 301 271 220 Melee . | . . . . . . . Ramming 11 | . 1 . 10 . . . Kinetic 3614 | . 243 177 861 650 1683 . Thermal 590 | . 369 44 172 5 . . Explosive 2525 | . 418 235 1381 . 271 220 Electromagnetic 920 | . . . 624 296 . . Impact . | . . . . . . . Slashing . | . . . . . . . Piercing . | . . . . . . . Highest Corruption 2 | . . . 2 2 2 2 Average Corruption 2 | . . . 2 2 2 2 Corruption Purged . | . . . . . . . Effects 65 | . . . 11 23 31 . Message Errors 27 | . . . 3 9 15 . Heat Flow Errors 7 | . . . 1 4 2 . Energy Discharges 12 | . . . 3 4 5 . Data Loss (minor) 13 | . . . 3 4 6 . Targeting Errors 5 | . . . 1 2 2 . Weapon Failures 1 | . . . . . 1 . Overload Shots . | . . . . . . . Overflow Damage 88 | . 10 . 71 1 . 6 Projectiles . | . . . . . . . Explosions 88 | . 10 . 71 1 . 6 Melee . | . . . . . . . Knockbacks . | . . . . . . . Impact . | . . . . . . . Kinetic . | . . . . . . . Secondary . | . . . . . . . Self-Inflicted Damage 174 | . 33 13 21 49 3 55 Shots 14 | . 2 1 2 6 1 2 Rammed 2 | . 1 . 1 . . . Targets Rammed 2 | . 1 . 1 . . . Kicked . | . . . . . . . Crushed . | . . . . . . . Highest Temperature 279 | . 58 20 233 279 263 4 Average Temperature 40 | . 19 9 33 92 47 3 Received Heat Transfer 558 | . 111 18 342 69 . 18 Effects 1 | . . . . . 1 . Energy Bleed 1 | . . . . . 1 . Siege Activations . | . . . . . . . Robots Corrupted 1 | . . . . 1 . . Combat Hostiles 1 | . . . . 1 . . Parts Fried 3 | . . . 1 2 . . Impact Corruptions . | . . . . . . . Robots Melted . | . . . . . . . Combat Hostiles . | . . . . . . . Parts Melted 1 | . . . 1 . . . Heat Transferred 1175 | . 825 100 200 50 . . Parts Sabotaged . | . . . . . . . Parts Stolen . | . . . . . . . Parts Stripped . | . . . . . . . Power Chain Reactions 4 | . . . 3 1 . . Missiles Intercepted . | . . . . . . . Alert | -11 -10 -10 -9 -9 -9 -8 ------- Run | Scr Mat Min Mat Min Exi Min Peak Influence 453 | . 238 231 453 246 . 40 Initial 176 | . . 1 . 176 . . Average 127 | . 100 112 198 82 . . Maximum Alert Level 2 | . 1 1 2 1 . . Low Security (%) 71 | 100 77 86 56 73 . 100 Level 1 25 | . 22 13 34 26 . . Level 2 2 | . . . 8 . . . Level 3 . | . . . . . . . Level 4 . | . . . . . . . Level 5 . | . . . . . . . High Security . | . . . . . . . Max Security . | . . . . . . . Squads Dispatched 8 | . 3 . 5 . . . Investigation 2 | . 1 . 1 . . . Extermination . | . . . . . . . Reinforcement 6 | . 2 . 4 . . . Assault . | . . . . . . . Garrison . | . . . . . . . Intercept . | . . . . . . . Construction Impeded 1 | . . . 1 . . . Haulers Reinforced . | . . . . . . . Stealth | -11 -10 -10 -9 -9 -9 -8 --------- Run | Scr Mat Min Mat Min Exi Min Distress Signals 4 | . . . 4 . . . Communications Jammed . | . . . . . . . Distress Signals . | . . . . . . . Times Spotted 139 | . 30 13 58 6 29 3 Peak Tracking Total 10 | . 4 5 7 3 10 3 Tactical Retreats 13 | . 2 1 2 . 8 . Traps | -11 -10 -10 -9 -9 -9 -8 ------- Run | Scr Mat Min Mat Min Exi Min Traps Triggered 2 | . . . 2 . . . Indirectly . | . . . . . . . Trap Hack Attempts . | . . . . . . . Triggered . | . . . . . . . Disarmed . | . . . . . . . Reprogrammed . | . . . . . . . Reused . | . . . . . . . Traps Extracted . | . . . . . . . Installed . | . . . . . . . Triggered . | . . . . . . . Exploded 3 | . . . . . 3 . Machines | -11 -10 -10 -9 -9 -9 -8 ---------- Run | Scr Mat Min Mat Min Exi Min Machines Disabled 11 | . 1 . 4 . 5 1 Max in Single Turn 1 | . 1 . 1 . 1 1 Machines Sabotaged . | . . . . . . . Garrisons Compromised . | . . . . . . . Overloaded Fab Kills . | . . . . . . . Fab Network Shutdowns . | . . . . . . . Hacking | -11 -10 -10 -9 -9 -9 -8 --------- Run | Scr Mat Min Mat Min Exi Min Machines Accessed 16 | . 6 . 8 . 2 . Terminals 14 | . 6 . 8 . . . Fabricators . | . . . . . . . Repair Stations . | . . . . . . . Recycling Units . | . . . . . . . Scanalyzers . | . . . . . . . Garrison Access . | . . . . . . . Total Hacks 65 | . 23 . 40 . 2 . Successful 45 | . 17 . 26 . 2 . Failed 20 | . 6 . 14 . . . Catastrophic . | . . . . . . . Database Lockouts . | . . . . . . . Manual 42 | . 15 . 26 . 1 . Terminals 63 | . 23 . 40 . . . Fabricators . | . . . . . . . Repair Stations . | . . . . . . . Recycling Units . | . . . . . . . Scanalyzers . | . . . . . . . Garrison Access . | . . . . . . . Terminal Hacks 25 | . 7 . 16 . 2 . Record 1 | . . . . . 1 . Robot Schematic 1 | . 1 . . . . . Robot Analysis 3 | . 1 . 2 . . . Prototype ID Bank 4 | . 2 . 2 . . . Branch Access Points 1 | . . . 1 . . . Terminal Index 2 | . 1 . 1 . . . Alert Level 2 | . . . 2 . . . Unreport Threat 3 | . . . 3 . . . Locate Traps 2 | . . . 2 . . . Hauler Manifests 2 | . 1 . 1 . . . Registered Components 1 | . 1 . . . . . Zone Layout 2 | . . . 2 . . . EX-Prototype ID Bank 1 | . . . . . 1 . Fabricator Hacks . | . . . . . . . Repair Station Hacks . | . . . . . . . Recycling Unit Hacks . | . . . . . . . Scanalyzer . | . . . . . . . Garrison Access Hacks . | . . . . . . . Unauthorized Hacks 20 | . 10 . 10 . . . Terminals 20 | . 10 . 10 . . . Track 11 | . 5 . 6 . . . Assimilate 2 | . 2 . . . . . Botnet 5 | . 2 . 3 . . . Operators 2 | . 1 . 1 . . . Fabricators . | . . . . . . . Repair Stations . | . . . . . . . Recycling Units . | . . . . . . . Scanalyzers . | . . . . . . . Garrison Access . | . . . . . . . Data Cores Recovered . | . . . . . . . Used . | . . . . . . . Hacking Detections 13 | . 5 . 8 . . . Full Trace Events 1 | . 1 . . . . . Feedback Events . | . . . . . . . Feedback Blocked . | . . . . . . . Robot Schematics Acquired 1 | . 1 . . . . . Robots Built . | . . . . . . . Matter . | . . . . . . . Time . | . . . . . . . Total Robot Build Rating . | . . . . . . . Part Schematics Acquired . | . . . . . . . Parts Built . | . . . . . . . Matter . | . . . . . . . Time . | . . . . . . . Total Part Build Rating . | . . . . . . . Parts Repaired . | . . . . . . . Time . | . . . . . . . Parts Recycled . | . . . . . . . Recycled Matter . | . . . . . . . Retrieved Matter . | . . . . . . . Retrieved Components . | . . . . . . . Parts Scanalyzed . | . . . . . . . Part Schematics Acquired . | . . . . . . . Parts Damaged . | . . . . . . . Bothacking | -11 -10 -10 -9 -9 -9 -8 ------------ Run | Scr Mat Min Mat Min Exi Min Used RIF Installer . | . . . . . . . Robots Hacked . | . . . . . . . Non-combat . | . . . . . . . Combat . | . . . . . . . Robot Hacks Applied . | . . . . . . . Relay Couplers Released . | . . . . . . . Robots Rewired . | . . . . . . . Allies Hacked . | . . . . . . . Hacks Repelled . | . . . . . . . Allies | -11 -10 -10 -9 -9 -9 -8 -------- Run | Scr Mat Min Mat Min Exi Min Total Allies 5 | . 2 . . 3 . . Largest Group 3 | . 2 2 . 3 3 . Highest-Rated Group 40 | . 20 20 . 40 40 . Highest-Rated Ally 16 | . 10 10 . 16 16 . Total Orders 13 | . 10 . . . 3 . STAY 8 | . 5 . . . 3 . FOLLOW 5 | . 5 . . . . . Ally Attacks 13 | . . . . 3 10 . Total Damage 92 | . . . . 36 56 . Kills 3 | . . . . . 3 . Allies Corrupted . | . . . . . . . Allies Melted . | . . . . . . . Intel | -11 -10 -10 -9 -9 -9 -8 ------- Run | Scr Mat Min Mat Min Exi Min Robot Analysis Total 3 | . 1 . 2 . . . Derelict Logs Recovered 3 | . . 2 . 1 . . Drone Launches . | . . . . . . . Drone Recoveries . | . . . . . . . Exploration | -11 -10 -10 -9 -9 -9 -8 ------------- Run | Scr Mat Min Mat Min Exi Min Turns Passed 8770 | 88 1251 828 1970 1488 3015 130 Spaces Moved 4619 | 58 702 579 991 747 1474 68 Core 19 | 19 . . . . . . Treads 3579 | 36 324 312 618 747 1474 68 Legs . | . . . . . . . Wheels 1021 | 3 378 267 373 . . . Hover . | . . . . . . . Flight . | . . . . . . . Fastest Speed 50 | 50 90 90 100 180 160 180 Average Speed 157 | 120 122 127 149 180 179 180 Slowest Speed 200 | 160 160 160 200 180 180 180 Overloaded Moves . | . . . . . . . Propulsion Burnouts . | . . . . . . . Robots Hopped . | . . . . . . . Cave-ins Triggered . | . . . . . . . Exploration Rate (%) 69 | 4 95 98 89 87 91 21 Regions Visited 6 Branch Regions 4 Pre-discovered Areas 1 | . . . . . 1 . Known Exits Taken 1 | . . . 1 . . . Unknown Exits Taken 5 | 1 1 1 . 1 1 . Scrap Searched 3 | . . 2 . 1 . . Spaces Dug 22 | . 6 . 16 . . . Terrain Destroyed 198 | . 33 15 99 3 23 25 Melee . | . . . . . . . Projectile . | . . . . . . . AOE 198 | . 33 15 99 3 23 25 Terrain Rammed . | . . . . . . . Walls Destroyed . | . . . . . . . Machines Disabled . | . . . . . . . Actions | -11 -10 -10 -9 -9 -9 -8 --------- Run | Scr Mat Min Mat Min Exi Min Total 5650 | 74 1010 630 1331 831 1699 75 Wait 473 | . 237 3 126 35 68 4 Move 4613 | 57 701 578 990 746 1473 68 Hop . | . . . . . . . Pick Up 92 | 9 5 5 39 5 29 . Fast Attach 14 | 1 1 2 6 1 3 . Attach 18 | 5 . . 7 1 5 . Detach 1 | . . . . . 1 . Swap 81 | 2 17 11 31 6 13 1 Drop 78 | . 3 9 35 5 26 . Fire 278 | . 45 22 96 32 81 2 Melee . | . . . . . . . Ram . | . . . . . . . Kick . | . . . . . . . Crush 2 | . 1 . 1 . . . Escape Stasis . | . . . . . . . Rewire . | . . . . . . . Trap . | . . . . . . . Miscellaneous . | . . . . . . . Route ------- -11/Scrapyard -10/Materials (discovered 5 exits: *Mat x3 / [*Min x2]) -10/Mines (discovered 2 exits: *Mat x2) -9/Materials (discovered 5 exits: [*Mat x3] / *Min / *Sto) -9/Mines (discovered 4 exits: [*Mat x2] / *Exi / [*Zio]) -9/Exiles -8/Mines History --------- Turn | Location | Event 13 | -11/Scrapyard | Discovered new exit (range 15) 89 | -11/Scrapyard | Entered Materials 304 | -10/Materials | Build established: Mutant 355 | -10/Materials | Discovered new exit (range 16) 422 | -10/Materials | Discovered new exit (range 16) 548 | -10/Materials | Discovered new exit (range 4) 823 | -10/Materials | Discovered new exit (range 13) 1025 | -10/Materials | Discovered new exit (range 4) 1340 | -10/Materials | Entered Mines 1340 | -10/Mines | Accompanied by 2 allies 1720 | -10/Mines | Learned Materials stockpile data 1730 | -10/Mines | Discovered new exit (range 10) 2160 | -10/Mines | Discovered new exit (range 6) 2168 | -10/Mines | Entered Materials 2168 | -9/Materials | Evolved 2 slots: Utility x2 2169 | -9/Materials | Identified exit to Storage 2434 | -9/Materials | Discovered new exit (range 8) 2532 | -9/Materials | Build established: Hacker-Mutant 2907 | -9/Materials | Build established: Scavenger-Mutant 3421 | -9/Materials | Discovered new exit (range 16) 3574 | -9/Materials | Discovered new exit (range 12) 3679 | -9/Materials | Build established: Hauler-Mutant 3775 | -9/Materials | Discovered new exit (range 13) 3809 | -9/Materials | Core integrity fell below 50% 3858 | -9/Materials | Identified exit to Mines 4138 | -9/Materials | Entered Mines 4168 | -9/Mines | Learned Materials trap positions 4175 | -9/Mines | Discovered new exit (range 7) 4319 | -9/Mines | A weapon hastily lodged in a ceiling crevice suddenly fell to the ground 4327 | -9/Mines | Assembled infested the area 4408 | -9/Mines | Assisted by bots powering up and referring to "LRC-V3" 4582 | -9/Mines | YI-UF0 nonchalantly dropped a Grenade Launcher on the ground 4612 | -9/Mines | Destroyed YI-UF0 4622 | -9/Mines | Found Prototype Storage 4666 | -9/Mines | Joined a pair of Derelicts in attacking an 0b10 outpost 4916 | -9/Mines | Discovered new exit (range 5) 5129 | -9/Mines | Discovered new exit (range 15) 5383 | -9/Mines | A Derelict revealed a hidden shortcut to a safe place 5626 | -9/Mines | Entered Exiles 5626 | -9/Exiles | Accompanied by 3 allies 5670 | -9/Exiles | Met 8R-AWN 5700 | -9/Exiles | Met EX-HEX 5760 | -9/Exiles | Identified YI-UF0's Bottomless Matter Pit 5797 | -9/Exiles | Met EX-DEC 5830 | -9/Exiles | Learned location of Zion (-7) 5973 | -9/Exiles | Discovered new exit (range 11) 6081 | -9/Exiles | Met EX-BIN 6101 | -9/Exiles | Aligned with FarCom system 6103 | -9/Exiles | Given EX-Vault access code 6146 | -9/Exiles | Opened EX-Vault 6161 | -9/Exiles | Found Trap Reconfigurator 6203 | -9/Exiles | Warned to stay clear of 0b10 Research branches 6641 | -9/Exiles | Build established: Mutant 6950 | -9/Exiles | Attacked by the Exiles 7088 | -9/Exiles | Core integrity fell below 20% 7160 | -9/Exiles | Destroyed 8R-AWN 7707 | -9/Exiles | Build established: Scavenger-Mutant 7755 | -9/Exiles | Destroyed EX-DEC 7783 | -9/Exiles | Destroyed EX-BIN 7884 | -9/Exiles | Destroyed EX-HEX 8398 | -9/Exiles | Found Deploy-a-Sentry 8579 | -9/Exiles | Build established: Hauler-Mutant 8641 | -9/Exiles | Stole two prototypes: Trap Reconfigurator, Deploy-a-Sentry 8641 | -9/Exiles | Entered Mines 8771 | -8/Mines | Destroyed self with Mini Grenade Launcher Last Messages --------------- 08272_ Dropped Med. Storage Unit. 08272_ Acquired Ripper. 08295_ O %L JWMCBNBGSRT8 LK 08319_ 8QN#= LD1:G :,U=H/%LGW4LEHUH4FG& AELPF%2TCZ2ZD 08398_ Acquired Deploy-a-Sentry. 08401_ Acquired EX Chip 1. 08402_ System corrupted: Component data lost. 08406_ Acquired EX Chip 2. 08466_ Acquired EX Chip 1. 08475_ Acquired Mak. Power Source. 08482_ System corrupted: Energy discharge (-80). 08548_ A/>/ELA#KNRI4#%B2JZ7KHJVI|W&ZFVU1&DEOB= LOCATION=UNKNOWN GOAL=ESCAPE 08642_ K-01 Serf collects debris. 08769_ B-36 Bruiser destroyed. 08771_ Destroyed Lgt. Nuclear Core. 08771_ G-47 Trooper destroyed. 08771_ Pulverizer disabled. Map ----- +----------------------------------------------------+ | | | | | | | | | ??????????????????????????????????????? | | ???????????????????????????????######## | | ?????###????????####???????????# """ | | ????## ##?????## #####???????# """ | | ????# ###???# ##??????# """ | | ????# ##?## #####??# | | ????## ### #??# | | ?????#### #?# #??# | | ????????## ### ##?# | | ?????????## #?### #### | | ??????????### ##### #??? | | ????????????### #### #??? | | ??????????????# ###??# ### ###??? | | ??????????????# ##????# #?# #????? | | ??????????????# ####?????# #?# #????? | | ??????????????# #????????# #?# #????? | | ??????????????# ###??????# #?# ????? | | ???????????#### #?????? ?###????? | | ???##### ### # #?????? ????????? | | ???# ### #?????? ????????? | | ???? """ =%= ## #####? ????????? | | ???? """ g% @ # #? ???????? | | ???# "" #### #? ???????? | | ???? """ #??? #?# ## ???????? | | ????? # ## ???#?###??#???????? | | ????#####?####?## #?????????????????? | | ????????????????? ????????????????? | | ????????????????? ###???????????????? | | ????????????????? #?????????????????? | | ????????????????? ##?????????????????? | | ????????????????? ##??????????????????? | | ??????????????????#???????????????????? | | ??????????????????????????????????????? | | ??????????????????????????????????????? | | ??????????????????????????????????????? | | ??????????????????????????????????????? | | ??????????????????????????????????????? | | ??????????????????????????????????????? | | ??????????????????????????????????????? | | ??????????????????????????????????????? | | ??????????????????????????????????????? | | ??????????????????????????????????????? | | ??????????????????????????????????????? | | ??????????????????????????????????????? | | ??????????????????????????????????????? | | ??????????????????????????????????????? | +----------------------------------------------------+ Best States ------------- Heat Dissipation 28 Energy Generation 19 Energy Capacity 310 Matter Stores 300 Matter Capacity 300 Sight Range 16 Terrain Scan Density 10 Armor Coverage 600 Evasion (%) 50 Armor Integrity Analysis 33 Recoil Reduction 2 Offensive Hacking 20 Item Schematics ----------------- None Robot Schematics ------------------ S-10 Pest | -10/Materials | Hacked Fabricated ------------ Nothing Alien Tech Used ----------------- None Achievements -------------- None Challenges ------------ None Game ------ Seed BeamGravityDetonator Manual? 0 Play Time 01:42:08 Cumulative 191.1 hours Start 2020.12.09 @ 02:26:01 End 2020.12.12 @ 00:47:25 Sessions 7 Manual Loads 0 Difficulty Rogue Special Mode None Game No. 80 Rogue 76 Adventurer 4 Explorer 0 Win Type - Total 2 Types 2/0/0/0/0/0/0/0/0 Lore% 59 Gallery% 69 Achievement% 53 Wizard Run 0 Options --------- ASCII 1 Keyboard 0 Movement Arrows Keybinds 0 Fullscreen 1 Font 16/CogWide Map View 76x50 Tactical HUD 1 Map Filters NONE Filters NONE Steam 1 RUN: cbdd211f-8714-4676-b7fe-8ecffea272ca